{"text_format":"1","workbook":"xlsx","n_sheets":4,"sheets":["Timeline","Worksheet","Contacts","Convert .csv"],"not_rendered":{"charts":0,"images":1,"macros":1,"external_links":0,"defined_names":6,"comments":0,"pivot_tables":0},"unopened":[],"bounds":{"document_bytes":16777216,"sheet_cells":100000,"rows_first":2000,"rows_last":500,"rows_between":2000,"halvings":0,"cell_chars":16384,"cell_head_chars":4096},"cells_cut":0,"cells_raw":0,"read":"whole","date_system":"1900"}

{"sheet":"Timeline","index":0,"n_rows":64,"n_cols":12,"rows_kept":64,"cut":false,"hidden":false,"merged":[[11,7,11,10],[11,2,11,6],[49,0,50,10],[6,0,6,1],[0,0,0,10],[7,2,7,3],[8,2,8,3],[6,7,6,10],[7,7,7,10],[8,7,8,10],[9,2,9,3],[5,0,5,1],[6,2,6,3],[5,2,5,4],[10,7,10,10],[12,7,16,10],[17,7,22,10],[23,7,28,10],[34,7,34,10],[35,8,35,10],[40,7,40,10],[46,7,48,10],[44,7,44,10],[45,7,45,10],[29,7,33,10],[39,7,39,10],[36,7,38,10],[41,7,43,10]]}
["PURCHASE CONTRACT TIMELINE  (Rev 6/5/2019)  ",null,null,null,null,null,null,null,null,null,null,"Go to the Worksheet Tab to enter information"]
[]
[null,"Fee Simple",null,null,null,null,null,null,null,"Sales Price:"]
[null,"Leasehold"]
[null,null,null,null,null,null,null,null,null,"Date:"]
["Subject Property:"]
["Contract Date:",null,{"$f":"Worksheet!C2","v":"00:00:00"},null,null,null,"Escrow Officer: "]
[null,"Acceptance Date:",{"$f":"Worksheet!C3","v":"00:00:00"},null,null,null,"Escrow Number:"]
[null,"Closing Date:",{"$f":"Worksheet!C4","v":"00:00:00"},null,null,null,"Seller/Buyer:"]
[null,"Special Termination O-3:"]
[null,"Completion"]
["Due Date","Date","Purchase Contract Paragraph Reference",null,null,null,null,"Notes"]
[{"$f":"Worksheet!A8","v":"00:00:00"},null,"B-1 Initial Deposit to Escrow ",null,null,null,{"$f":"Worksheet!G8","v":0}]
[{"$f":"Worksheet!A9","v":{"$error":"#VALUE!"}},null,"C-2 Additional Deposit due",null,null,null,{"$f":"Worksheet!G9","v":0}]
[{"$f":"Worksheet!A10","v":"N/A"},null,"E-3 PV System Docs to be provided by Seller"]
[{"$f":"Worksheet!A11","v":"N/A"},null,"E-3 PV System Docs Review/Approval by Buyer"]
[{"$f":"Worksheet!A12","v":"N/A"},null,"E-4 Inclusion of Furnishing delivered to the buyer"]
[{"$f":"Worksheet!A13","v":"N/A"},null,"E-4 Inclusion of Furnishing review period ends"]
[{"$f":"Worksheet!A14","v":"00:00:00"},null,"F-2 Scheduled Closing Date"]
[{"$f":"Worksheet!A15","v":"N/A"},null,"G-1 Preliminary Report Delivered to Buyer"]
[{"$f":"Worksheet!A16","v":"N/A"},null,"G-2b Preliminary Report Review & Approval"]
[{"$f":"Worksheet!A17","v":{"$error":"#VALUE!"}},null,"G-2C Title Defect(s) Cure"]
[{"$f":"Worksheet!A18","v":"N/A"},null,"G-3 Title & tenancy due"]
[{"$f":"Worksheet!A19","v":"N/A"},null,"H-1a Verification of Cash Funds"]
[{"$f":"Worksheet!A20","v":"N/A"},null,"H-2a Contingency on Cash Funds"]
[{"$f":"Worksheet!A21","v":"N/A"},null,"H-4a Pre-qual letter due to Sellers"]
[{"$f":"Worksheet!A22","v":"N/A"},null,"H-4b Conditional Loan Commitment Letter"]
[{"$f":"Worksheet!A23","v":"N/A"},null,"H-4c Satisfaction of Lenders Conditions"]
[{"$f":"Worksheet!A24","v":"N/A"},null,"I-1b Seller's Disclosure to Buyer"]
[{"$f":"Worksheet!A25","v":"N/A"},null,"I-3a Buyer acknowledgement to Seller's Disclosure receipt"]
[{"$f":"Worksheet!A26","v":"N/A"},null,"I-3b Seller's Disclosure-approval/cancellation"]
[{"$f":"Worksheet!A27","v":"N/A"},null,"J-1 Property Inspection by Buyer"]
[{"$f":"Worksheet!A28","v":"N/A"},null,"J-3 Final Walk Through by Buyer"]
[{"$f":"Worksheet!A29","v":"N/A"},null,"J-4 Release of Funds for repairs"]
[{"$f":"Worksheet!A30","v":"N/A"},null,"J-8 Removal of Items from Property",null,null,null,null,"Q-1 Special Terms"]
[{"$f":"Worksheet!A31","v":"N/A"},null,"J-9 Interior/Exterior Cleaning",null,null,null,null,null,{"$f":"Worksheet!A45","v":"N/A"}]
[{"$f":"Worksheet!A32","v":"N/A"},null,"J-10 Pet Related Cleaning/Treatment"]
[{"$f":"Worksheet!A33","v":"N/A"},null,"J-10 Release of Funds for Pet Treatment"]
[{"$f":"Worksheet!A34","v":"N/A"},null,"K-1 Staking"]
[{"$f":"Worksheet!A35","v":"N/A"},null,"K-2 Survey",null,null,null,null,"Q-2 Special Terms"]
[{"$f":"Worksheet!A36","v":"N/A"},null,"L-2 TIR selected by:       ",null,{"$f":"Worksheet!E36","v":"( )Seller ( )Buyer"},null,null,{"$f":"Worksheet!A46","v":"N/A"}]
[{"$f":"Worksheet!A37","v":"N/A"},null,"L-2 TIR to be delivered to Buyer"]
[{"$f":"Worksheet!A38","v":"N/A"},null,"M-1d Seller to deliver Documents to Buyer"]
[{"$f":"Worksheet!A39","v":"N/A"},null,"M-1d Buyer acknowledgment of receipt of Documents"]
[{"$f":"Worksheet!A40","v":"N/A"},null,"M-1e Documentation Approval by Buyer",null,null,null,null,"Q-3 Special Terms"]
[{"$f":"Worksheet!A41","v":"N/A"},null,"Leasehold Documents to be delivered ",null,null,null,null,{"$f":"Worksheet!A47","v":"N/A"}]
[{"$f":"Worksheet!A42","v":"N/A"},null,"Leasehold Documents review period ends",null,null,null,null," "]
[{"$f":"Worksheet!A43","v":"N/A"},null,"N-2 Seller to deliver Rental Documents to Buyer"]
[{"$f":"Worksheet!A44","v":"N/A"},null,"N-2  Rental Documents Review/Approval"]
[]
[]
[]
[]
["Disclaimer: The Old Republic Title Timeline Calculator is designed to provide general"]
["information in a user-friendly manner. It is important to understand that the information is based on"]
["user input and the dates are approximations, both of which are dependent upon certain variables"]
["unique to each real estate transaction, such as the timely completion of contractual or other"]
["requirements. These factors are beyond the functionality provided by Old Republic Title, or this Timeline Calculator."]
["More important, the accuracy of the estimated items stated is entirely dependent upon the"]
["accuracy of the information entered into the Calculator. The Calculator is for general information purposes only."]
["Old Republic Title makes no warranty, express or implied, about sufficiency or accuracy of the"]
["information provided. There is no assumption of responsibility or liability for errors or omissions,"]
["whatsoever. Every user is solely responsible for compliance with applicable laws, relative to their"]
["particular real estate transaction, including disclosure and any timing or delivery requirements."]

{"sheet":"Worksheet","index":1,"n_rows":61,"n_cols":12,"rows_kept":61,"cut":false,"hidden":false,"merged":[[1,0,1,1],[1,2,1,3],[2,2,2,3],[0,0,0,10],[3,2,3,3],[4,2,4,3],[5,7,5,10],[6,2,6,6],[6,7,6,10],[47,0,48,10]]}
["Worksheet",null,null,null,null,null,null,null,null,null,null,"Go to Timeline Tab"]
["Contract Date:"]
[null,"Acceptance Date:"]
[null,"Closing Date:"]
[null,"Special Termination O-3:"]
[null,null,null,null,null,null,null,"Enter Required Number of days"]
["Due Date",null,"Purchase Contract Paragraph Reference",null,null,null,null,"Leave Blank if \"N/A\""]
[{"$f":"C3+I8","v":"00:00:00"},null,"B-1 Initial Deposit to Escrow ",null,null,null,null,"(",null,"days after acceptance)"]
[{"$f":"A27+I9","v":{"$error":"#VALUE!"}},null,"C-2 Additional Deposit due",null,null,null,null,"(",null,"days after J-1)"]
[{"$f":"+IF(+I10>0,(+C3+I10),\"N/A\")","v":"N/A"},null,"E-3 PV System Docs to be provided by Seller",null,null,null,null,"(",null,"days after acceptance)"]
[{"$f":"+IF(+A10=\"N/A\",\"N/A\",(+A10+I11))","v":"N/A"},null,"E-3 PV System Docs Review/Approval by Buyer",null,null,null,null,"(",null,"days after receipt)"]
[{"$f":"+IF(+I12>0,(+C3+I12),\"N/A\")","v":"N/A"},null,"E-4 Inclusion of Furnishing delivered to the buyer",null,null,null,null,"(",null,"days after acceptance)"]
[{"$f":"+IF(+A12=\"N/A\",\"N/A\",(+A12+I13))","v":"N/A"},null,"E-4 Inclusion of Furnishing review period ends",null,null,null,null,"(",null,"days after receipt)"]
[{"$f":"+C4","v":"00:00:00"},null,"F-2 Scheduled Closing Date",null,null,null,null,"(",null,{"$f":"+IF(+I14>0,\"days to extend)\",\"days, Time of the Essence)\")","v":"days, Time of the Essence)"}]
[{"$f":"+IF(+I15>0,(+C3+I15),\"N/A\")","v":"N/A"},null,"G-1 Preliminary Report Delivered to Buyer",null,null,null,null,"(",null,"days after acceptance)"]
[{"$f":"+IF(+A15=\"N/A\",\"N/A\",(+A15+I16))","v":"N/A"},null,"G-2b Preliminary Report Review & Approval",null,null,null,null,"(",null,"days after receipt)"]
[{"$f":"A16+I17","v":{"$error":"#VALUE!"}},null,"G-2C Title Defect(s) Cure",null,null,null,null,"(",null,"days after G-2b)"]
[{"$f":"+IF(+I18>0,(+C3+I18),\"N/A\")","v":"N/A"},null,"G-3 Title & tenancy due",null,null,null,null,"(",null,"days after acceptance)"]
[{"$f":"+IF(+I19>0,(+C3+I19),\"N/A\")","v":"N/A"},null,"H-1a Verification of Cash Funds",null,null,null,null,"(",null,"days after acceptance)"]
[{"$f":"+IF(+I20>0,(+C3+I20),\"N/A\")","v":"N/A"},null,"H-2a Contingency on Cash Funds",null,null,null,null,"(",null,"days after acceptance)"]
[{"$f":"+IF(+I21>0,(+C3+I21),\"N/A\")","v":"N/A"},null,"H-4a Pre-qual letter due to Sellers",null,null,null,null,"(",null,"days after acceptance)"]
[{"$f":"+IF(+I22>0,(+C3+I22),\"N/A\")","v":"N/A"},null,"H-4b Conditional Loan Commitment Letter",null,null,null,null,"(",null,"days after acceptance)"]
[{"$f":"+IF(+I23=0,\"N/A\", C4-I23)","v":"N/A"},null,"H-4c Satisfaction of Lenders Conditions",null,null,null,null,"(",null,"days prior to closing)"]
[{"$f":"+IF(+I24>0,(+C3+I24),\"N/A\")","v":"N/A"},null,"I-1b Seller's Disclosure to Buyer",null,null,null,null,"(",null,"days after acceptance)"]
[{"$f":"+IF(+A24=\"N/A\",\"N/A\",(+A24+I25))","v":"N/A"},null,"I-3a Buyer acknowledgement to Seller's Disclosure receipt",null,null,null,null,"(",null,"days after receipt)"]
[{"$f":"+IF(+A24=\"N/A\",\"N/A\",(+A24+I26))","v":"N/A"},null,"I-3b Seller's Disclosure-approval/cancellation",null,null,null,null,"(",null,"days after receipt)"]
[{"$f":"+IF(+I27>0,(+C3+I27),\"N/A\")","v":"N/A"},null,"J-1 Property Inspection by Buyer",null,null,null,null,"(",null,"days after acceptance)"]
[{"$f":"+IF(+I28=0,\"N/A\", +C4-I28)","v":"N/A"},null,"J-3 Final Walk Through by Buyer",null,null,null,null,"(",null,"days prior to closing)"]
[{"$f":"IF(I29>0,(C4+I29),\"N/A\")","v":"N/A"},null,"J-4 Release of Funds for repairs",null,null,null,null,"(",null,"days after closing)"]
[{"$f":"+IF(+I30=0,\"N/A\", +C4-I30)","v":"N/A"},null,"J-8 Removal of Items from Property",null,null,null,null,"(",null,"days prior to closing)"]
[{"$f":"+IF(+I31=0,\"N/A\", +C4-I31)","v":"N/A"},null,"J-9 Interior/Exterior Cleaning",null,null,null,null,"(",null,"days prior to closing)"]
[{"$f":"IF(I32>0,(C4-I32),\"N/A\")","v":"N/A"},null,"J-10 Pet Related Cleaning/Treatment",null,null,null,null,"(",null,"days prior to closing)"]
[{"$f":"IF(I33>0,(C4+I33),\"N/A\")","v":"N/A"},null,"J-10 Release of Funds for Pet Treatment",null,null,null,null,"(",null,"days after closing)"]
[{"$f":"+IF(I34>0,(C3+I34),\"N/A\")","v":"N/A"},null,"K-1 Staking",null,null,null,null,"(",null,"days after acceptance)"]
[{"$f":"+IF(I35>0,(C3+I35),\"N/A\")","v":"N/A"},null,"K-2 Survey",null,null,null,null,"(",null,"days after acceptance)"]
[{"$f":"+IF(I36>0,(C3+I36),\"N/A\")","v":"N/A"},null,"L-2 TIR selected by:       ",null,"( )Seller ( )Buyer",null,null,"(",null,"days after acceptance)"]
[{"$f":"+IF(+I37=0,\"N/A\",(+C4-I37))","v":"N/A"},null,"L-2 TIR to be delivered to Buyer",null,null,null,null,"(",null,"days prior to closing)"]
[{"$f":"+IF(I38>0,(C3+I38),\"N/A\")","v":"N/A"},null,"M-1d Seller to deliver Documents to Buyer",null,null,null,null,"(",null,"days after acceptance)"]
[{"$f":"+IF(+A38=\"N/A\",\"N/A\",(+A38+I39))","v":"N/A"},null,"M-1d Buyer acknowledgment of receipt of Documents",null,null,null,null,"(",null,"days after receipt)"]
[{"$f":"+IF(+I40>0, (+A38+I40), \"N/A\")","v":"N/A"},null,"M-1e Documentation Approval by Buyer",null,null,null,null,"(",null,"days to review)"]
[{"$f":"+IF(+I41>0,(+C3+I41),\"N/A\")","v":"N/A"},null,"Leasehold Documents to be delivered ",null,null,null,null,"( ",null,"days after acceptance)"]
[{"$f":"+IF(+I42>0, (+A41+I42), \"N/A\")","v":"N/A"},null,"Leasehold Documents review period ends",null,null,null,null,"(",null,"days to review)"]
[{"$f":"+IF(I43>0,(+I43+C3),\"N/A\")","v":"N/A"},null,"N-2 Seller to deliver Rental Documents to be Buyer",null,null,null,null,"(",null,"days after acceptance)"]
[{"$f":"+IF(I43>0,(+A43+I44),\"N/A\")","v":"N/A"},null,"N-2 Rental Documents Review/Approval",null,null,null,null,"(",null,"days to review)"]
[{"$f":"+IF(I45>0,(+I45+C3),\"N/A\")","v":"N/A"},null,"Q-1 Special Terms",null,null,null,null,"(",null,"days after acceptance)"]
[{"$f":"+IF(I46>0,(+I46+C3),\"N/A\")","v":"N/A"},null,"Q-2 Special Terms",null,null,null,null,"(",null,"days after acceptance)"]
[{"$f":"+IF(I47>0,(+I47+C3),\"N/A\")","v":"N/A"},null,"Q-3 Special Terms",null,null,null,null,"(",null,"days after acceptance)"]
[]
[]
[]
["Disclaimer: The Old Republic Title Timeline Calculator is designed to provide general"]
["information in a user-friendly manner. It is important to understand that the information is based on"]
["user input and the dates are approximations, both of which are dependent upon certain variables"]
["unique to each real estate transaction, such as the timely completion of contractual or other"]
["requirements. These factors are beyond the functionality provided by Old Republic Title, or this Timeline Calculator."]
["More important, the accuracy of the estimated items stated is entirely dependent upon the"]
["accuracy of the information entered into the Calculator. The Calculator is for general information purposes only."]
["Old Republic Title makes no warranty, express or implied, about sufficiency or accuracy of the"]
["information provided. There is no assumption of responsibility or liability for errors or omissions,"]
["whatsoever. Every user is solely responsible for compliance with applicable laws, relative to their"]
["particular real estate transaction, including disclosure and any timing or delivery requirements."]

{"sheet":"Contacts","index":2,"n_rows":44,"n_cols":4,"rows_kept":44,"cut":false,"hidden":false,"merged":[[40,0,40,3],[4,0,4,3],[8,0,8,3],[21,0,21,3],[0,9,0,10],[1,7,1,10],[2,7,2,10],[6,1,6,2],[33,0,33,3]]}
[]
[]
[]
[]
["CONTACTS"]
[]
["Subject Property:",{"$f":"+Timeline!C6","v":0}]
[]
["LISTING BROKER"]
[]
["Agent:",null,"Phone:"]
["Company:",null,"Cellular:"]
["Address:",null,"Fax:"]
[null,null,"Email:"]
[]
[]
[" Seller:",null,"Phone:"]
["Address:"]
[]
[]
[]
["SELLING BROKER"]
[]
["Agent:",null,"Phone:"]
["Company:",null,"Cellular:"]
["Address:",null,"Fax:"]
[null,null,"Email:"]
[]
[]
["Buyer:",null,"Phone:"]
["Address:"]
[]
[]
["ESCROW"]
[]
["Escrow Officer:",{"$f":"Timeline!H7","v":0},"Escrow No.:",{"$f":"+Timeline!H8","v":0}]
["Company:",null,"Phone:"]
[null,null,"Fax:"]
[]
[]
["LENDER"]
[]
["Loan Officer:",null,"Phone:"]
["Company:",null,"Fax:"]

{"sheet":"Convert .csv","index":3,"n_rows":1,"n_cols":2,"rows_kept":1,"cut":false,"hidden":false,"merged":[]}
["Start Date","Subject"]